bitfinex/quotes_SOLUSD_20250219
["timestamp","ask_amount","ask_price","bid_price","bid_amount"]
[1739979847553,161.77782137,171.38,171.34,1.73]
[1739979847773,167.61282137,171.38,171.34,1.73]
[1739979848761,27.27782137,171.35,171.34,1.73]
[1739979849063,33.11382137,171.35,171.34,1.73]
[1739979850155,27.27782137,171.35,171.34,1.73]
[1739979850346,27.27782137,171.36,171.34,1.73]
[1739979850856,222.14,171.37,171.34,1.73]
[1739979851460,82.7,171.36,171.34,1.73]
[1739979851643,82.7,171.38,171.34,29.00782137]
[1739979851849,82.7,171.38,171.35,27.27782137]
[1739979852070,82.7,171.38,171.36,27.27782137]
[1739979852635,82.7,171.38,171.35,27.27782137]
[1739979852835,82.763,171.4,171.36,27.27782137]
[1739979853141,82.763,171.4,171.35,27.27782137]
[1739979854847,82.763,171.4,171.36,27.27782137]
[1739979855165,82.763,171.4,171.38,27.27782137]
[1739979855385,0.063,171.4,171.38,27.27782137]
[1739979855543,0.063,171.4,171.37,27.27782137]
[1739979856160,0.063,171.4,171.36,33.11342137]
[1739979856449,0.063,171.4,171.36,27.27782137]
[1739979857204,0.063,171.4,171.35,33.11372137]
[1739979857886,0.063,171.4,171.36,27.27782137]
[1739979858486,82.7,171.39,171.34,95.9543]
[1739979858686,82.7,171.39,171.34,123.23212137]
[1739979858990,82.7,171.39,171.35,27.27782137]
[1739979859361,27.27782137,171.36,171.34,1.73]
[1739979859560,244.47782137,171.35,171.32,0.03]
[1739979859788,27.27782137,171.33,171.32,0.03]
[1739979860493,217.2,171.35,171.32,0.03]
[1739979860794,82.7,171.34,171.32,0.03]
[1739979861396,115.81432137,171.34,171.32,0.03]
[1739979861894,27.27782137,171.33,171.32,0.03]
[1739979862099,32.21782137,171.33,171.32,0.03]
[1739979862468,4.94,171.33,171.32,0.03]
[1739979863296,32.21782137,171.33,171.32,0.03]
[1739979863480,38.05442137,171.33,171.32,0.03]
[1739979866206,40.93524271,171.33,171.32,0.03]
[1739979868177,74.17659157,171.33,171.24,92.58]
[1739979868504,27.27782137,171.27,171.24,92.58]
[1739979868710,82.7,171.26,171.24,92.58]
[1739979869487,82.7,171.26,171.24,119.85782137]
[1739979869995,82.7,171.3,171.25,27.27782137]
[1739979870794,82.7,171.3,171.26,27.27782137]
[1739979871406,82.7,171.3,171.25,27.27782137]
[1739979872495,82.7,171.3,171.25,33.11722137]
[1739979872681,82.7,171.3,171.26,27.27782137]
[1739979873096,82.7,171.3,171.25,27.27782137]
[1739979873278,82.7,171.29,171.25,27.27782137]
[1739979874201,82.7,171.29,171.24,119.85782137]
[1739979874406,115.81592137,171.29,171.24,92.58]
[1739979874711,244.47782137,171.28,171.24,92.58]
[1739979875083,217.2,171.28,171.24,92.58]
[1739979875426,217.2,171.28,171.24,125.69742137]
[1739979875692,217.2,171.28,171.24,119.85782137]
[1739979875895,217.2,171.28,171.24,92.58]
[1739979876081,244.47782137,171.28,171.24,92.58]
[1739979876284,217.2,171.28,171.24,92.58]
[1739979876896,250.31622137,171.28,171.24,92.58]
[1739979877100,27.27782137,171.27,171.24,92.61]
[1739979878693,17.0819663,171.27,171.24,92.61]
[1739979878889,17.0819663,171.27,171.24,0.03]
[1739979879312,82.7,171.26,171.24,0.03]
[1739979879612,99.7819663,171.25,171.24,0.03]
[1739979884204,105.6213663,171.25,171.24,0.03]
[1739979885129,22.9213663,171.25,171.24,0.03]
[1739979885494,41.57101516,171.25,171.24,0.03]
[1739979888530,41.57101516,171.25,171.2,92.65]
[1739979888700,17.0819663,171.21,171.2,92.65]
[1739979889024,22.0219663,171.21,171.2,92.65]
[1739979889228,46.51231516,171.21,171.2,92.65]
[1739979889521,27.8626663,171.21,171.2,92.65]
[1739979889729,22.0219663,171.21,171.2,92.65]
[1739979890317,27.8626663,171.21,171.2,92.65]
[1739979890732,19.64964886,171.17,171.16,0.03]
[1739979891029,17.0819663,171.15,171.09,0.03]
[1739979891209,22.0219663,171.14,171.09,0.03]
[1739979891409,17.0819663,171.12,171.09,0.03]
[1739979891721,17.0819663,171.1,171.09,0.03]
[1739979891923,17.0819663,171.11,171.09,0.03]
[1739979892934,17.0819663,171.1,171.09,0.03]
[1739979894015,22.9264663,171.1,171.09,0.03]
[1739979898505,17.0819663,171.1,171.09,0.03]
[1739979898705,17.0819663,171.11,171.09,0.03]
[1739979898907,4.94,171.12,171.09,0.03]
[1739979899219,17.0819663,171.13,171.09,0.03]
[1739979899726,17.0819663,171.12,171.09,0.03]
[1739979900319,17.0819663,171.11,171.09,0.03]
[1739979900499,17.0819663,171.1,171.09,0.03]
[1739979901025,17.0819663,171.11,171.09,0.03]
[1739979901219,17.0819663,171.1,171.09,0.03]
[1739979901927,22.9264663,171.1,171.09,0.03]
[1739979902110,157.4264663,171.1,171.09,0.03]
[1739979902304,151.5819663,171.1,171.09,0.03]
[1739979902510,134.5,171.14,171.09,17.1119663]
[1739979902713,134.5,171.14,171.12,17.0819663]
[1739979903025,134.5,171.14,171.1,1.5247]
[1739979903326,134.5,171.13,171.1,1.5247]
[1739979904329,151.5819663,171.13,171.1,1.5247]
[1739979904533,134.5,171.14,171.1,1.5247]
[1739979905119,17.0819663,171.13,171.1,1.5247]
[1739979905502,151.5819663,171.14,171.1,1.5247]
[1739979906227,157.4251663,171.14,171.1,1.5247]
[1739979906431,151.5819663,171.14,171.1,1.5247]
[1739979908731,157.4251663,171.14,171.1,1.5247]
[1739979908911,82.7,171.12,171.1,1.5247]
[1739979909112,82.7,171.12,171.09,0.03]
[1739979909113,17.0819663,171.11,171.09,0.03]
[1739979909411,234.2819663,171.1,171.09,0.03]
[1739979909725,5.8432,171.14,171.09,0.03]
[1739979909932,10.7829,171.15,171.09,0.03]
[1739979910106,4.94,171.15,171.09,17.1119663]
[1739979910312,17.0819663,171.18,171.11,17.0819663]
[1739979910511,10.7814,171.19,171.11,17.0819663]
[1739979910711,17.0819663,171.17,171.1,18.6694663]
[1739979911441,17.0819663,171.16,171.1,1.5875]
[1739979911611,17.0819663,171.14,171.1,1.5875]
[1739979912613,17.0819663,171.13,171.1,1.5875]
[1739979912816,17.0819663,171.11,171.09,0.03]
[1739979913018,17.0819663,171.1,171.09,0.03]
[1739979914429,22.9264663,171.1,171.09,0.03]
[1739979915033,17.0819663,171.1,171.09,0.03]
[1739979915338,25.89899683,171.11,171.09,0.03]
[1739979915923,17.0819663,171.1,171.09,0.03]
[1739979916521,22.9264663,171.1,171.09,0.03]
[1739979917639,217.2,171.12,171.09,0.03]
[1739979917821,82.7,171.11,171.09,17.1119663]
[1739979918016,82.7,171.11,171.09,0.03]
[1739979919240,99.7819663,171.11,171.09,0.03]
[1739979919419,17.0819663,171.1,171.09,0.03]
[1739979919934,82.7,171.11,171.09,0.03]
[1739979920452,82.7,171.11,171.09,17.1119663]
[1739979920736,82.7,171.14,171.1,18.7350663]
[1739979920916,82.7,171.14,171.13,17.0819663]
[1739979921115,82.7,171.14,171.09,0.03]
[1739979921116,223.0435,171.13,171.09,0.03]
[1739979921329,17.0819663,171.11,171.08,0.03]
[1739979921738,22.9263663,171.11,171.08,0.03]
[1739979922135,5.8444,171.11,171.08,0.03]
[1739979922337,22.9263663,171.11,171.08,0.03]
[1739979922540,17.0819663,171.1,171.08,0.03]
[1739979922745,17.0819663,171.09,171.08,0.03]
[1739979924026,22.9267663,171.09,171.08,0.03]
[1739979924842,18.64964886,171.12,171.08,0.03]
[1739979925025,17.0819663,171.1,171.08,0.03]
[1739979925225,17.0819663,171.12,171.08,0.03]
[1739979925539,27.8647663,171.15,171.09,17.0819663]
[1739979925720,27.8647663,171.15,171.09,18.7350663]
[1739979925921,27.8647663,171.15,171.09,1.6531]
[1739979926334,17.0819663,171.13,171.09,1.6531]
[1739979927517,17.0819663,171.14,171.09,1.6531]
[1739979927731,27.8647663,171.15,171.09,18.7350663]
[1739979927932,82.7,171.13,171.09,24.5798663]
[1739979928226,134.5,171.14,171.09,24.5798663]
[1739979928227,82.7,171.12,171.11,17.0819663]
[1739979929023,82.7,171.15,171.11,22.9260663]
[1739979929222,0.063,171.16,171.15,7.9115]
[1739979929449,82.7,171.21,171.15,24.9934663]
[1739979929642,82.7,171.21,171.19,17.0819663]
[1739979930139,82.7,171.21,171.16,92.72]
[1739979930140,82.7,171.24,171.2,17.0819663]
[1739979930660,82.7,171.23,171.21,17.0819663]
[1739979930951,82.7,171.23,171.21,27.32840242]
[1739979931249,82.7,171.23,171.2,27.32840242]
[1739979931947,244.52840242,171.22,171.16,120.04840242]
[1739979932124,27.32840242,171.21,171.16,92.72]
[1739979932547,244.52840242,171.22,171.16,120.04840242]
[1739979933050,27.32840242,171.19,171.16,92.72]
[1739979933260,27.32840242,171.17,171.16,92.72]
[1739979933552,32.26840242,171.17,171.16,92.72]
[1739979933755,4.94,171.17,171.16,92.72]
[1739979934353,134.5,171.19,171.16,92.72]
[1739979935243,5.8407,171.22,171.17,27.32840242]
[1739979935244,134.5,171.22,171.17,27.32840242]
[1739979935460,166.76840242,171.23,171.17,27.32840242]
[1739979935645,166.76840242,171.23,171.16,125.89060242]
[1739979935952,166.76840242,171.23,171.17,27.32840242]
[1739979936334,172.60850242,171.23,171.17,27.32840242]
[1739979936539,166.76840242,171.23,171.17,27.32840242]
[1739979937147,139.44,171.23,171.17,33.17040242]
[1739979937456,166.76840242,171.23,171.17,27.32840242]
[1739979937758,82.7,171.21,171.16,120.04840242]
[1739979938052,82.7,171.21,171.16,92.75]
[1739979938238,82.7,171.21,171.16,120.07840242]
[1739979938835,82.7,171.21,171.16,125.92080242]
[1739979939530,82.7,171.21,171.18,1.5523]
[1739979939729,82.7,171.21,171.19,27.32840242]
[1739979939930,82.7,171.21,171.2,27.32840242]
[1739979940153,33.16730242,171.27,171.2,27.32840242]
[1739979940154,82.7,171.26,171.2,27.32840242]
[1739979940355,82.7,171.25,171.23,27.32840242]
[1739979940738,82.7,171.25,171.22,27.32840242]
[1739979941346,110.02840242,171.25,171.19,27.32840242]
[1739979941656,82.7,171.25,171.19,33.16980242]
[1739979941853,88.5394,171.25,171.19,27.32840242]
[1739979942041,27.32840242,171.24,171.18,28.88070242]
[1739979942358,27.32840242,171.23,171.18,1.5523]
[1739979943038,33.16850242,171.23,171.18,1.5523]
[1739979943351,110.02840242,171.22,171.18,1.5523]
[1739979943553,27.32840242,171.2,171.16,92.75]
[1739979943757,244.52840242,171.19,171.16,92.75]
[1739979943944,27.32840242,171.18,171.16,92.75]
[1739979944260,82.7,171.17,171.16,92.75]
[1739979944835,115.87050242,171.17,171.16,92.75]
[1739979945154,115.87050242,171.17,171.16,88.5]
[1739979945155,51.82015128,171.17,171.16,88.5]
[1739979945339,51.82015128,171.17,171.16,0.03]
[1739979945537,51.82015128,171.17,171.06,132.02080242]
[1739979945538,18.64964886,171.16,171.06,132.02080242]
[1739979945738,27.32840242,171.13,171.06,132.02080242]
[1739979945957,27.32840242,171.13,171.06,126.17500242]
[1739979946135,27.32840242,171.12,171.06,120.03840242]
[1739979946660,27.32840242,171.13,171.06,125.88420242]
[1739979947358,27.32840242,171.14,171.07,27.32840242]
[1739979947965,27.32840242,171.13,171.06,125.88420242]
[1739979948949,27.32840242,171.14,171.07,27.32840242]
[1739979949154,27.32840242,171.14,171.07,33.17370242]
[1739979949355,27.32840242,171.16,171.1,27.32840242]
[1739979949554,32.26840242,171.17,171.1,27.32840242]
[1739979950063,27.32840242,171.16,171.1,27.32840242]
[1739979950451,27.32840242,171.16,171.09,27.32840242]
[1739979950452,27.32840242,171.15,171.09,27.32840242]
[1739979950656,82.7,171.14,171.09,27.32840242]
[1739979951060,82.7,171.14,171.08,27.35840242]
[1739979951264,82.7,171.14,171.08,33.20340242]
[1739979951654,27.32840242,171.13,171.08,0.03]
[1739979951854,27.32840242,171.12,171.08,0.03]
[1739979952072,82.7,171.11,171.08,0.03]
[1739979952282,82.7,171.11,171.08,27.35840242]
[1739979952579,82.7,171.11,171.08,0.03]
[1739979953279,27.32840242,171.09,171.08,0.03]
[1739979953446,227.9845,171.1,171.04,0.063]
[1739979953447,27.32840242,171.07,171.04,0.063]
[1739979953858,27.32840242,171.06,171.04,0.063]
[1739979954074,244.52840242,171.05,171.04,0.063]
[1739979954660,45.97805128,171.05,171.04,0.063]
[1739979955158,45.97805128,171.03,171.02,92.73]
[1739979955365,56.76495128,171.03,171.02,92.73]
[1739979956054,32.26840242,171.03,171.02,92.73]
[1739979956462,38.11530242,171.03,171.02,92.73]
[1739979957573,56.76495128,171.03,171.02,92.73]
[1739979957788,56.76495128,171.03,171.02,86.71]
[1739979958087,57.76495128,171.03,171.02,69.28040421]
[1739979958267,57.76495128,171.03,171.02,60.29940421]
[1739979958455,57.76495128,171.03,171.02,57.37240421]
[1739979958775,57.76495128,171.03,171.02,51.09040421]
[1739979958973,57.76495128,171.03,171.02,45.07040421]
[1739979959156,57.76495128,171.03,171.02,39.05040421]
[1739979959367,57.76495128,171.03,171.02,4.66759635]
[1739979959661,25.97204886,171.02,171.01,92.79]
[1739979959849,54.30045128,171.02,171.01,47.5295]
[1739979960053,54.30045128,171.02,171.01,17.4864]
[1739979960273,54.30045128,171.02,171.0,0.03]
[1739979960274,53.30045128,171.02,171.0,0.03]
[1739979960470,45.97805128,171.01,171.0,0.03]
[1739979961680,51.82565128,171.01,171.0,0.03]
[1739979962050,51.82565128,171.01,170.94,92.76]
[1739979962051,19.64964886,171.0,170.94,92.76]
[1739979962252,27.32840242,170.97,170.94,92.76]
[1739979962567,82.7,170.96,170.94,92.76]
[1739979962867,82.7,170.95,170.94,92.76]
[1739979963257,82.7,170.95,170.94,120.08840242]
[1739979963457,222.14,171.0,170.94,120.08840242]
[1739979963661,82.7,170.99,170.98,27.32840242]
[1739979963974,82.7,170.99,170.98,1.6442]
[1739979964167,82.7,170.99,170.94,121.64690242]
[1739979964365,82.7,170.98,170.94,94.3185]
[1739979964554,217.2,170.97,170.94,94.3185]
[1739979964754,217.2,170.97,170.94,92.76]
[1739979964755,27.32840242,170.96,170.94,92.76]
[1739979965363,244.52840242,170.97,170.94,92.76]
[1739979965963,223.0489,170.97,170.94,92.76]
[1739979966159,27.32840242,170.96,170.94,92.76]
[1739979966577,27.32840242,170.95,170.94,92.76]
[1739979966781,27.32840242,170.96,170.94,92.76]
[1739979967158,32.26840242,170.98,170.94,92.76]
[1739979967880,27.32840242,170.96,170.94,92.76]
[1739979968062,27.32840242,170.95,170.94,92.76]
[1739979968264,45.97805128,170.95,170.94,92.76]
[1739979968576,45.97805128,170.95,170.94,53.25562204]
[1739979969764,51.82765128,170.95,170.94,53.25562204]
[1739979970170,27.32840242,170.95,170.94,53.25562204]
[1739979970378,33.17800242,170.95,170.94,53.25562204]
[1739979970587,41.65219389,170.95,170.94,53.25562204]
[1739979972478,56.27629389,170.95,170.91,0.03]
[1739979972674,17.15294503,170.92,170.91,0.03]
[1739979972878,22.09294503,170.92,170.91,0.03]
[1739979974081,46.59319389,170.92,170.91,0.03]
[1739979976287,29.44024886,170.92,170.91,0.03]
[1739979976477,5.8493,170.96,170.91,0.03]
[1739979976669,17.15294503,170.94,170.91,0.03]
[1739979977188,4.94,170.95,170.91,17.18294503]
[1739979977488,17.15294503,170.94,170.91,0.03]
[1739979978277,17.15294503,170.93,170.91,0.03]
[1739979979085,17.15294503,170.92,170.91,0.03]
[1739979979277,17.15294503,170.92,170.81,5.8543]
[1739979979278,18.64964886,170.9,170.81,5.8543]
[1739979979481,17.15294503,170.88,170.81,17.15294503]
[1739979979669,156.59294503,170.89,170.82,17.15294503]
[1739979979874,139.44,170.89,170.83,17.15294503]
[1739979980077,139.44,170.89,170.85,17.15294503]
[1739979980268,4.94,170.89,170.86,17.15294503]
[1739979980464,82.7,170.88,170.85,17.15294503]
[1739979980665,82.7,170.88,170.84,8.1476]
[1739979981168,82.7,170.88,170.84,25.30054503]
[1739979981386,82.7,170.88,170.84,8.1476]
[1739979981781,82.7,170.88,170.84,31.15374503]
[1739979982166,82.7,170.88,170.84,118.12054503]
[1739979983003,82.7,170.88,170.84,100.9676]
[1739979983193,217.2,170.87,170.84,94.3406]
[1739979983495,234.35294503,170.86,170.84,92.82]
[1739979983872,217.2,170.86,170.84,92.82]
[1739979984063,82.7,170.85,170.84,92.82]
[1739979984262,23.00504503,170.88,170.84,92.82]
[1739979984467,17.15294503,170.87,170.84,92.82]
[1739979984680,17.15294503,170.85,170.84,92.82]
[1739979984969,35.80259389,170.85,170.84,92.82]
[1739979985169,17.15294503,170.86,170.84,92.82]
[1739979985487,17.15294503,170.87,170.84,92.82]
[1739979985686,134.5,170.87,170.84,92.82]
[1739979985868,139.44,170.87,170.84,92.82]
[1739979986194,156.59294503,170.87,170.84,92.82]
[1739979986390,5.8527,170.86,170.84,92.82]
[1739979986993,23.00564503,170.86,170.84,92.85]
[1739979987371,156.59294503,170.85,170.84,92.85]
[1739979987567,175.24259389,170.85,170.84,92.85]
[1739979988072,40.74259389,170.85,170.84,90.3745337]
[1739979988390,46.59559389,170.85,170.84,0.03]
[1739979988596,18.64964886,170.84,170.74,94.3629]
[1739979988769,17.15294503,170.8,170.74,94.3629]
[1739979988970,222.14,170.79,170.74,94.3629]
[1739979989276,234.35294503,170.78,170.74,94.3629]
[1739979989474,234.35294503,170.77,170.74,94.3629]
[1739979990290,217.2,170.76,170.74,94.3629]
[1739979990589,82.7,170.75,170.74,100.2197]
[1739979990771,217.2,170.78,170.74,132.01474503]
[1739979990967,217.2,170.78,170.74,114.8618]
[1739979991171,217.2,170.78,170.75,17.15294503]
[1739979991386,217.2,170.84,170.74,101.2197]
[1739979991595,223.0537,170.83,170.73,0.03]
[1739979991793,18.64964886,170.82,170.73,0.03]
[1739979991992,4.94,170.81,170.73,5.8871]
[1739979992397,82.7,170.8,170.76,17.15294503]
[1739979992704,82.7,170.82,170.79,17.15294503]
[1739979993009,217.2,170.87,170.81,18.77634503]
[1739979993301,82.7,170.86,170.85,17.15294503]
[1739979993501,217.2,170.9,170.85,17.15294503]
[1739979993704,234.35294503,170.89,170.83,17.15294503]
[1739979994214,217.2,170.89,170.83,17.15294503]
[1739979994805,17.15294503,170.87,170.82,6.1236]
[1739979995102,223.0517,170.89,170.83,17.15294503]
[1739979995103,217.2,170.89,170.83,17.15294503]
[1739979995301,217.2,170.89,170.82,6.1236]
[1739979995516,17.15294503,170.88,170.82,6.1236]
[1739979995706,234.35294503,170.89,170.83,17.15294503]
[1739979995921,217.2,170.89,170.83,17.15294503]
[1739979996097,217.2,170.89,170.84,17.15294503]
[1739979996610,244.65113574,170.89,170.82,33.57473574]
[1739979997112,27.45113574,170.88,170.82,33.57473574]
[1739979997415,244.65113574,170.89,170.83,92.86]
[1739979997593,27.45113574,170.86,170.83,92.86]
[1739979997794,217.2,170.85,170.83,92.86]
[1739979998114,82.7,170.84,170.83,92.86]
[1739980000902,82.7,170.93,170.89,29.00813574]
[1739980001097,82.7,170.92,170.91,27.45113574]
[1739980001302,82.7,170.92,170.9,27.45113574]
[1739980001503,244.65113574,170.91,170.83,92.86]
[1739980001815,27.45113574,170.87,170.83,92.86]
[1739980002108,217.2,170.86,170.83,92.86]
[1739980002290,217.2,170.86,170.84,27.45113574]
[1739980002488,217.2,170.86,170.85,27.45113574]
[1739980003619,217.2,170.86,170.83,92.86]
[1739980003987,110.15113574,170.86,170.83,92.86]
[1739980005308,82.7,170.86,170.83,92.86]
[1739980006498,82.7,170.85,170.83,92.86]
[1739980006692,82.7,170.84,170.83,92.86]
[1739980010010,140.3528,170.86,170.83,92.86]
[1739980010422,140.3528,170.86,170.78,27.45113574]
[1739980010423,82.7,170.83,170.78,27.45113574]
[1739980010720,82.7,170.82,170.79,120.31113574]
[1739980010889,82.7,170.82,170.79,92.86]
[1739980011499,82.7,170.82,170.79,120.31113574]
[1739980012510,3.87230299,170.9,170.79,120.31113574]
[1739980012511,82.7,170.89,170.88,2.0]
[1739980012722,82.7,170.91,170.9,1.0]
[1739980014613,116.00213574,170.91,170.87,2.0]
[1739980014913,27.45113574,170.88,170.85,1.0]
[1739980015097,27.45113574,170.89,170.86,2.0]
[1739980015297,116.00213574,170.91,170.88,1.0]
[1739980015515,116.00213574,170.91,170.87,1.0]
[1739980015808,27.45113574,170.9,170.87,1.0]
[1739980016207,33.30323574,170.88,170.84,2.0]
[1739980016515,27.45113574,170.86,170.84,1.0]
[1739980016719,17.16401986,170.86,170.84,1.0]
[1739980017218,17.16401986,170.86,170.82,2.57]
[1739980017404,17.16401986,170.85,170.82,1.0]
[1739980018101,17.16401986,170.83,170.81,1.0]
[1739980018295,82.7,170.82,170.81,2.0]
[1739980018799,82.7,170.82,170.8,1.0]
[1739980019003,116.02210416,170.82,170.8,1.0]
[1739980019190,82.7,170.81,170.8,1.0]
[1739980020307,82.7,170.81,170.8,2.0]
[1739980021505,82.7,170.81,170.8,1.0]
[1739980022720,110.16800416,170.81,170.79,93.89]
[1739980022911,110.16800416,170.8,170.79,92.89]
[1739980023220,51.05765302,170.8,170.79,92.89]
[1739980024518,51.05765302,170.8,170.79,13.39943885]
[1739980024519,93.86872137,170.8,170.79,13.39943885]
[1739980024716,96.83858379,170.8,170.79,1.67012436]
[1739980025533,96.83858379,170.8,170.79,2.436e-05]
[1739980026099,96.83858379,170.8,170.73,92.91]
[1739980026100,18.64964886,170.79,170.73,92.91]
[1739980026305,46.11765302,170.74,170.73,92.91]
[1739980026602,56.91445302,170.74,170.73,92.91]
[1739980027129,32.40800416,170.74,170.73,93.91]
[1739980027311,27.46800416,170.78,170.76,1.0]
[1739980027512,27.46800416,170.79,170.77,1.0]
[1739980027709,27.46800416,170.79,170.76,1.0]
[1739980027913,27.46800416,170.77,170.74,1.0]
[1739980028238,18.64964886,170.74,170.73,92.91]
[1739980028417,113.15765302,170.74,170.73,92.91]
[1739980028619,119.01445302,170.74,170.73,90.12640459]
[1739980029352,133.65655302,170.74,170.68,1.0]
[1739980029521,27.46800416,170.69,170.65,1.0]
[1739980029718,27.46800416,170.66,170.65,1.0]
[1739980029939,27.46800416,170.66,170.63,1.0]
[1739980030116,27.46800416,170.64,170.62,1.03]
[1739980030335,27.46800416,170.63,170.62,0.03]
[1739980030653,27.46800416,170.63,170.62,1.03]
[1739980031716,4.94,170.68,170.67,1.0]
[1739980031717,32.40800416,170.68,170.67,1.0]
[1739980031922,4.94,170.68,170.67,1.0]
[1739980032423,87.64,170.68,170.67,1.0]
[1739980032648,87.64,170.68,170.67,2.0]
[1739980032854,82.7,170.71,170.7,1.0]
[1739980033088,82.7,170.71,170.7,2.0]
[1739980033218,27.46800416,170.72,170.7,1.0]
[1739980033420,27.46800416,170.72,170.71,1.0]
[1739980033850,82.7,170.74,170.73,1.0]
[1739980034237,87.64,170.76,170.75,1.0]
[1739980034425,115.10800416,170.76,170.75,1.0]
[1739980034622,87.64,170.76,170.75,1.0]
[1739980034828,149.74,170.82,170.8,1.0]
[1739980035024,82.7,170.81,170.8,1.0]
[1739980035437,32.40800416,170.82,170.8,1.0]
[1739980035642,27.46800416,170.81,170.8,1.0]
[1739980036058,82.7,170.8,170.77,1.0]
[1739980036231,27.46800416,170.78,170.75,1.0]
[1739980036441,27.46800416,170.76,170.75,1.0]
[1739980038533,27.46800416,170.76,170.75,1.03]
[1739980038844,32.40800416,170.76,170.75,1.03]
[1739980039363,56.91375302,170.76,170.75,0.03]
[1739980039744,119.01375302,170.76,170.75,0.03]
[1739980041240,113.15765302,170.76,170.75,0.03]
[1739980041452,94.50800416,170.76,170.75,1.03]
[1739980041656,94.50800416,170.76,170.75,0.03]
[1739980041967,100.36410416,170.76,170.75,0.03]
[1739980043089,27.46800416,170.75,170.74,92.94]
[1739980043244,46.11765302,170.75,170.74,92.94]
[1739980044984,51.97415302,170.75,170.74,92.94]
[1739980045686,27.46800416,170.75,170.74,93.94]
[1739980045848,110.16800416,170.75,170.74,92.94]
[1739980046347,116.02450416,170.75,170.74,92.94]
[1739980046652,116.02450416,170.75,170.74,89.4169238]
[1739980046653,134.67415302,170.75,170.74,89.4169238]
[1739980046859,116.02450416,170.75,170.74,89.4169238]
[1739980047064,18.64964886,170.73,170.62,0.03]
[1739980047387,27.46800416,170.65,170.62,0.03]
[1739980047683,110.16800416,170.64,170.62,0.03]
[1739980048155,27.46800416,170.63,170.62,0.03]
[1739980048353,110.16800416,170.64,170.62,0.03]
[1739980048689,82.7,170.64,170.63,1.0]
[1739980049048,82.7,170.64,170.62,0.03]
[1739980049256,116.02840416,170.64,170.62,0.03]
[1739980049457,110.16800416,170.64,170.62,0.03]
[1739980050092,82.7,170.64,170.62,0.03]
[1739980050593,82.7,170.64,170.62,1.03]
[1739980051084,82.7,170.64,170.62,0.03]
[1739980051294,27.46800416,170.63,170.62,0.03]
[1739980052067,89.56800416,170.65,170.62,0.03]
[1739980052609,62.1,170.65,170.63,1.0]
[1739980054204,62.1,170.65,170.64,1.0]
[1739980055905,27.46800416,170.69,170.66,1.0]
[1739980056089,27.46800416,170.7,170.67,1.0]
[1739980056288,110.16800416,170.69,170.66,1.0]
[1739980056594,27.46800416,170.68,170.66,1.0]
[1739980056809,27.46800416,170.68,170.67,1.0]
[1739980056977,27.46800416,170.68,170.66,1.0]
[1739980057177,27.46800416,170.68,170.62,0.03]
[1739980057178,33.32690416,170.68,170.65,1.0]
[1739980057371,27.46800416,170.67,170.64,1.0]
[1739980058304,27.46800416,170.67,170.63,1.0]
[1739980058503,27.46800416,170.67,170.64,1.0]
[1739980058805,82.7,170.69,170.67,1.0]
[1739980058984,110.16800416,170.69,170.68,1.0]
[1739980060706,99.89757291,170.69,170.68,1.0]
[1739980060890,82.7,170.69,170.68,1.0]
[1739980061704,5.04,170.73,170.71,1.0]
[1739980061906,0.063,170.72,170.71,1.0]
[1739980062071,0.063,170.72,170.71,93.96]
[1739980062271,0.063,170.72,170.71,111.15757291]